fUST/lending_fUST_20260507
["ID","MTS","AMOUNT","RATE_DAILY","PERIOD"]
[421785283,1778153445000,-500.0,0.00011232,2]
[421785285,1778153445000,-300.3,0.00011232,2]
[421785284,1778153445000,-500.0,0.00011232,2]
[421785288,1778153445000,-500.0,0.00011232,2]
[421785286,1778153445000,-500.0,0.00011232,2]
[421785289,1778153445000,-500.0,0.00011232,2]
[421785291,1778153445000,-500.0,0.00011232,2]
[421785292,1778153445000,-500.0,0.00011232,2]
[421785293,1778153445000,-500.0,0.00011232,2]
[421785297,1778153445000,-500.0,0.00011232,2]
[421785295,1778153445000,-500.0,0.00011232,2]
[421785296,1778153445000,-500.0,0.00011232,2]
[421785294,1778153445000,-500.0,0.00011232,2]
[421785290,1778153445000,-500.0,0.00011232,2]
[421785298,1778153445000,-500.0,0.00011232,2]
[421785299,1778153445000,-500.0,0.00011232,2]
[421785333,1778153445000,-500.0,0.00011232,2]
[421785369,1778153445000,-500.0,0.00011232,2]
[421785332,1778153445000,-500.0,0.00011232,2]
[421785361,1778153445000,-552.22,0.00011232,2]
[421785363,1778153445000,-500.0,0.00011232,2]
[421785365,1778153445000,-500.0,0.00011232,2]
[421785371,1778153445000,-500.0,0.00011232,2]
[421785388,1778153445000,-500.0,0.00011232,2]
[421785367,1778153445000,-500.0,0.00011232,2]
[421785368,1778153445000,-500.0,0.00011232,2]
[421785366,1778153445000,-500.0,0.00011232,2]
[421785370,1778153445000,-500.0,0.00011232,2]
[421785372,1778153445000,-500.0,0.00011232,2]
[421785373,1778153445000,-500.0,0.00011232,2]
[421785381,1778153445000,-500.0,0.00011232,2]
[421785383,1778153445000,-500.0,0.00011232,2]
[421785378,1778153445000,-500.0,0.00011232,2]
[421785375,1778153445000,-500.0,0.00011232,2]
[421785377,1778153445000,-500.0,0.00011232,2]
[421785374,1778153445000,-500.0,0.00011232,2]
[421785384,1778153445000,-500.0,0.00011232,2]
[421785376,1778153445000,-500.0,0.00011232,2]
[421785379,1778153445000,-500.0,0.00011232,2]
[421785380,1778153445000,-500.0,0.00011232,2]
[421785385,1778153445000,-500.0,0.00011232,2]
[421785386,1778153445000,-500.0,0.00011232,2]
[421785387,1778153445000,-500.0,0.00011232,2]
[421785331,1778153445000,-500.0,0.00011232,2]
[421785364,1778153445000,-500.0,0.00011232,2]
[421785362,1778153445000,-500.0,0.00011232,2]
[421785382,1778153445000,-500.0,0.00011232,2]
[421785357,1778153445000,-705.13,0.00011232,2]
[421785360,1778153445000,-500.0,0.00011232,2]
[421785329,1778153445000,-500.0,0.00011232,2]
[421785325,1778153445000,-500.0,0.00011232,2]
[421785335,1778153445000,-500.0,0.00011232,2]
[421785337,1778153445000,-500.0,0.00011232,2]
[421785343,1778153445000,-933.68,0.00011232,2]
[421785340,1778153445000,-500.0,0.00011232,2]
[421785345,1778153445000,-500.0,0.00011232,2]
[421785342,1778153445000,-500.0,0.00011232,2]
[421785338,1778153445000,-623.88,0.00011232,2]
[421785336,1778153445000,-500.0,0.00011232,2]
[421785341,1778153445000,-500.0,0.00011232,2]
[421785346,1778153445000,-500.0,0.00011232,2]
[421785328,1778153445000,-500.0,0.00011232,2]
[421785358,1778153445000,-500.0,0.00011232,2]
[421785339,1778153445000,-500.0,0.00011232,2]
[421785359,1778153445000,-500.0,0.00011232,2]
[421785356,1778153445000,-500.0,0.00011232,2]
[421785354,1778153445000,-500.0,0.00011232,2]
[421785353,1778153445000,-500.0,0.00011232,2]
[421785355,1778153445000,-500.0,0.00011232,2]
[421785349,1778153445000,-500.0,0.00011232,2]
[421785351,1778153445000,-500.0,0.00011232,2]
[421785352,1778153445000,-500.0,0.00011232,2]
[421785348,1778153445000,-500.0,0.00011232,2]
[421785347,1778153445000,-500.0,0.00011232,2]
[421785350,1778153445000,-500.0,0.00011232,2]
[421785437,1778153446000,-500.0,0.00011232,2]
[421785426,1778153446000,-1437.04,0.00011232,2]
[421785439,1778153446000,-500.0,0.00011232,2]
[421785432,1778153446000,-500.0,0.00011232,2]
[421785430,1778153446000,-500.0,0.00011232,2]
[421785414,1778153446000,-500.0,0.00011232,2]
[421785436,1778153446000,-1053.66,0.00011232,2]
[421785440,1778153446000,-517.36,0.00011232,2]
[421785423,1778153446000,-500.0,0.00011232,2]
[421785428,1778153446000,-500.0,0.00011232,2]
[421785424,1778153446000,-500.0,0.00011232,2]
[421785434,1778153446000,-500.0,0.00011232,2]
[421785438,1778153446000,-500.0,0.00011232,2]
[421785446,1778153446000,-789.33,0.00011232,2]
[421785443,1778153446000,-500.0,0.00011232,2]
[421785445,1778153446000,-8774.04,0.00011232,2]
[421785444,1778153446000,-500.0,0.00011232,2]
[421785452,1778153446000,-500.0,0.00011232,2]
[421785442,1778153446000,-500.0,0.00011232,2]
[421785447,1778153446000,-500.0,0.00011232,2]
[421785451,1778153446000,-500.0,0.00011232,2]
[421785450,1778153446000,-467.97287276,0.00011232,2]
[421785449,1778153446000,-6499.89,0.00011232,2]
[421785448,1778153446000,-1433.04,0.00011232,2]
[421785454,1778153446000,-500.0,0.00011232,2]
[421785465,1778153446000,-415.70014015,0.00011232,2]
[421785441,1778153446000,-500.0,0.00011232,2]
[421785418,1778153446000,-500.0,0.00011232,2]
[421785390,1778153446000,-500.0,0.00011232,2]
[421785417,1778153446000,-1102.59,0.00011232,2]
[421785392,1778153446000,-691.32,0.00011232,2]
[421785464,1778153446000,-500.0,0.00011232,2]
[421785391,1778153446000,-500.0,0.00011232,2]
[421785393,1778153446000,-500.0,0.00011232,2]
[421785389,1778153446000,-500.0,0.00011232,2]
[421785395,1778153446000,-500.0,0.00011232,2]
[421785394,1778153446000,-500.0,0.00011232,2]
[421785397,1778153446000,-500.0,0.00011232,2]
[421785408,1778153446000,-500.0,0.00011232,2]
[421785407,1778153446000,-500.0,0.00011232,2]
[421785398,1778153446000,-500.0,0.00011232,2]
[421785400,1778153446000,-500.0,0.00011232,2]
[421785399,1778153446000,-500.0,0.00011232,2]
[421785403,1778153446000,-500.0,0.00011232,2]
[421785401,1778153446000,-500.0,0.00011232,2]
[421785402,1778153446000,-500.0,0.00011232,2]
[421785406,1778153446000,-521.46,0.00011232,2]
[421785405,1778153446000,-500.0,0.00011232,2]
[421785404,1778153446000,-688.82,0.00011232,2]
[421785410,1778153446000,-639.46,0.00011232,2]
[421785421,1778153446000,-311.7312006,0.00011232,2]
[421785409,1778153446000,-500.0,0.00011232,2]
[421785411,1778153446000,-500.0,0.00011232,2]
[421785412,1778153446000,-500.0,0.00011232,2]
[421785413,1778153446000,-500.0,0.00011232,2]
[421785415,1778153446000,-500.0,0.00011232,2]
[421785419,1778153446000,-500.0,0.00011232,2]
[421785416,1778153446000,-500.0,0.00011232,2]
[421785455,1778153446000,-3435.07,0.00011232,2]
[421785453,1778153446000,-500.0,0.00011232,2]
[421785457,1778153446000,-500.0,0.00011232,2]
[421785492,1778153446000,-1663.58,0.00011232,2]
[421785500,1778153446000,-151.0,0.000113,2]
[421785496,1778153446000,-500.0,0.00011232,2]
[421785503,1778153446000,-151.0,0.000114,2]
[421785498,1778153446000,-500.0,0.00011232,2]
[421785494,1778153446000,-500.0,0.00011232,2]
[421785493,1778153446000,-544.00367871,0.00011232,2]
[421785497,1778153446000,-500.0,0.00011232,2]
[421785495,1778153446000,-500.0,0.00011232,2]
[421785504,1778153446000,-151.0,0.000114,2]
[421785502,1778153446000,-189500.79861947,0.000114,2]
[421785499,1778153446000,-151.0,0.000113,2]
[421785506,1778153446000,-151.0,0.000115,2]
[421785505,1778153446000,-557.5788265,0.00011451,2]
[421785507,1778153446000,-151.0,0.000115,2]
[421785510,1778153446000,-498.56,0.00011506,2]
[421785516,1778153446000,-266.1,0.00011506,2]
[421785509,1778153446000,-500.0,0.00011506,2]
[421785508,1778153446000,-500.0,0.00011506,2]
[421785511,1778153446000,-354.26,0.00011506,2]
[421785515,1778153446000,-861.1819,0.00011506,2]
[421785514,1778153446000,-500.0,0.00011506,2]
[421785512,1778153446000,-500.0,0.00011506,2]
[421785513,1778153446000,-500.0,0.00011506,2]
[421785517,1778153446000,-500.0,0.00011506,2]
[421785518,1778153446000,-500.0,0.00011506,2]
[421785456,1778153446000,-500.0,0.00011232,2]
[421785489,1778153446000,-646.34,0.00011232,2]
[421785488,1778153446000,-500.0,0.00011232,2]
[421785501,1778153446000,-500.0,0.00011373,2]
[421785482,1778153446000,-627.65,0.00011232,2]
[421785460,1778153446000,-500.0,0.00011232,2]
[421785486,1778153446000,-500.0,0.00011232,2]
[421785458,1778153446000,-500.0,0.00011232,2]
[421785459,1778153446000,-500.0,0.00011232,2]
[421785462,1778153446000,-500.0,0.00011232,2]
[421785461,1778153446000,-500.0,0.00011232,2]
[421785463,1778153446000,-500.0,0.00011232,2]
[421785466,1778153446000,-603.47893609,0.00011232,2]
[421785467,1778153446000,-500.0,0.00011232,2]
[421785477,1778153446000,-500.0,0.00011232,2]
[421785468,1778153446000,-725.65,0.00011232,2]
[421785469,1778153446000,-562.47,0.00011232,2]
[421785471,1778153446000,-500.0,0.00011232,2]
[421785473,1778153446000,-500.0,0.00011232,2]
[421785478,1778153446000,-500.0,0.00011232,2]
[421785487,1778153446000,-1835.42,0.00011232,2]
[421785484,1778153446000,-500.0,0.00011232,2]
[421785475,1778153446000,-951.06,0.00011232,2]
[421785485,1778153446000,-500.0,0.00011232,2]
[421785483,1778153446000,-500.0,0.00011232,2]
[421785481,1778153446000,-500.0,0.00011232,2]
[421785479,1778153446000,-500.0,0.00011232,2]
[421785490,1778153446000,-500.0,0.00011232,2]
[421785476,1778153446000,-500.0,0.00011232,2]
[421785470,1778153446000,-500.0,0.00011232,2]
[421785472,1778153446000,-500.0,0.00011232,2]
[421785474,1778153446000,-1196.29,0.00011232,2]
[421785491,1778153446000,-500.0,0.00011232,2]
[421785557,1778153447000,-500.0,0.00011506,2]
[421785563,1778153447000,-609.41,0.00011506,2]
[421785559,1778153447000,-500.0,0.00011506,2]
[421785558,1778153447000,-500.0,0.00011506,2]
[421785554,1778153447000,-500.0,0.00011506,2]
[421785551,1778153447000,-500.0,0.00011506,2]
[421785560,1778153447000,-933.68,0.00011506,2]
[421785556,1778153447000,-500.0,0.00011506,2]
[421785555,1778153447000,-500.0,0.00011506,2]
[421785553,1778153447000,-500.0,0.00011506,2]
[421785562,1778153447000,-500.0,0.00011506,2]
[421785564,1778153447000,-500.0,0.00011506,2]
[421785561,1778153447000,-500.0,0.00011506,2]
[421785579,1778153447000,-500.0,0.00011506,2]
[421785567,1778153447000,-500.0,0.00011506,2]
[421785566,1778153447000,-500.0,0.00011506,2]
[421785572,1778153447000,-500.0,0.00011506,2]
[421785570,1778153447000,-500.0,0.00011506,2]
[421785568,1778153447000,-500.0,0.00011506,2]
[421785574,1778153447000,-306.3,0.00011506,2]
[421785573,1778153447000,-500.0,0.00011506,2]
[421785569,1778153447000,-500.0,0.00011506,2]
[421785576,1778153447000,-500.0,0.00011506,2]
[421785577,1778153447000,-500.0,0.00011506,2]
[421785571,1778153447000,-705.13,0.00011506,2]
[421785575,1778153447000,-500.0,0.00011506,2]
[421785548,1778153447000,-500.0,0.00011506,2]
[421785590,1778153447000,-500.0,0.00011506,2]
[421785546,1778153447000,-500.0,0.00011506,2]
[421785520,1778153447000,-500.0,0.00011506,2]
[421785549,1778153447000,-500.0,0.00011506,2]
[421785519,1778153447000,-500.0,0.00011506,2]
[421785528,1778153447000,-392.42,0.00011506,2]
[421785521,1778153447000,-500.0,0.00011506,2]
[421785522,1778153447000,-228.14564734,0.00011506,2]
[421785523,1778153447000,-241.1,0.00011506,2]
[421785524,1778153447000,-500.0,0.00011506,2]
[421785526,1778153447000,-204.2,0.00011506,2]
[421785527,1778153447000,-500.0,0.00011506,2]
[421785525,1778153447000,-500.0,0.00011506,2]
[421785530,1778153447000,-342.698628,0.00011506,2]
[421785540,1778153447000,-500.0,0.00011506,2]
[421785529,1778153447000,-500.0,0.00011506,2]
[421785531,1778153447000,-500.0,0.00011506,2]
[421785545,1778153447000,-500.0,0.00011506,2]
[421785532,1778153447000,-500.0,0.00011506,2]
[421785534,1778153447000,-500.0,0.00011506,2]
[421785536,1778153447000,-500.0,0.00011506,2]
[421785535,1778153447000,-500.0,0.00011506,2]
[421785538,1778153447000,-500.0,0.00011506,2]
[421785537,1778153447000,-500.0,0.00011506,2]
[421785539,1778153447000,-792.217,0.00011506,2]
[421785541,1778153447000,-500.0,0.00011506,2]
[421785544,1778153447000,-500.0,0.00011506,2]
[421785543,1778153447000,-804.84,0.00011506,2]
[421785542,1778153447000,-177.46,0.00011506,2]
[421785552,1778153447000,-500.0,0.00011506,2]
[421785547,1778153447000,-500.0,0.00011506,2]
[421785550,1778153447000,-500.0,0.00011506,2]
[421785533,1778153447000,-500.0,0.00011506,2]
[421785589,1778153447000,-500.0,0.00011506,2]
[421785565,1778153447000,-488.84,0.00011506,2]
[421785580,1778153447000,-398.76,0.00011506,2]
[421785610,1778153447000,-188.52,0.00011506,2]
[421785616,1778153447000,-500.0,0.00011506,2]
[421785620,1778153447000,-500.0,0.00011506,2]
[421785625,1778153447000,-500.0,0.00011506,2]
[421785623,1778153447000,-500.0,0.00011506,2]
[421785628,1778153447000,-500.0,0.00011506,2]
[421785619,1778153447000,-1437.04,0.00011506,2]
[421785621,1778153447000,-332.74,0.00011506,2]
[421785624,1778153447000,-1053.66,0.00011506,2]
[421785626,1778153447000,-329.76,0.00011506,2]
[421785617,1778153447000,-500.0,0.00011506,2]
[421785618,1778153447000,-500.0,0.00011506,2]
[421785627,1778153447000,-500.0,0.00011506,2]
[421785611,1778153447000,-500.0,0.00011506,2]
[421785622,1778153447000,-500.0,0.00011506,2]
[421785640,1778153447000,-500.0,0.00011506,2]
[421785636,1778153447000,-500.0,0.00011506,2]
[421785629,1778153447000,-299.2,0.00011506,2]
[421785635,1778153447000,-500.0,0.00011506,2]
[421785634,1778153447000,-6499.89,0.00011506,2]
[421785638,1778153447000,-3435.07,0.00011506,2]
[421785641,1778153447000,-484.96,0.00011506,2]
[421785632,1778153447000,-500.0,0.00011506,2]
[421785631,1778153447000,-789.33,0.00011506,2]
[421785633,1778153447000,-1433.04,0.00011506,2]
[421785639,1778153447000,-500.0,0.00011506,2]
[421785642,1778153447000,-254.64,0.00011506,2]
[421785582,1778153447000,-500.0,0.00011506,2]
[421785630,1778153447000,-8774.04,0.00011506,2]
[421785608,1778153447000,-500.0,0.00011506,2]
[421785637,1778153447000,-500.0,0.00011506,2]
[421785612,1778153447000,-500.0,0.00011506,2]
[421785607,1778153447000,-688.82,0.00011506,2]
[421785578,1778153447000,-500.0,0.00011506,2]
[421785584,1778153447000,-500.0,0.00011506,2]
[421785583,1778153447000,-500.0,0.00011506,2]
[421785587,1778153447000,-500.0,0.00011506,2]
[421785585,1778153447000,-500.0,0.00011506,2]
[421785586,1778153447000,-500.0,0.00011506,2]
[421785588,1778153447000,-500.0,0.00011506,2]
[421785591,1778153447000,-500.0,0.00011506,2]
[421785593,1778153447000,-500.0,0.00011506,2]
[421785594,1778153447000,-500.0,0.00011506,2]
[421785592,1778153447000,-500.0,0.00011506,2]
[421785595,1778153447000,-500.0,0.00011506,2]
[421785596,1778153447000,-500.0,0.00011506,2]
[421785581,1778153447000,-500.0,0.00011506,2]
[421785598,1778153447000,-691.32,0.00011506,2]
[421785609,1778153447000,-500.0,0.00011506,2]
[421785606,1778153447000,-613.6,0.00011506,2]
[421785615,1778153447000,-314.88125962,0.00011506,2]
[421785605,1778153447000,-542.57,0.00011506,2]
[421785597,1778153447000,-500.0,0.00011506,2]
[421785613,1778153447000,-500.0,0.00011506,2]
[421785614,1778153447000,-1102.59,0.00011506,2]
[421785604,1778153447000,-573.98,0.00011506,2]
[421785603,1778153447000,-500.0,0.00011506,2]
[421785600,1778153447000,-500.0,0.00011506,2]
[421785599,1778153447000,-500.0,0.00011506,2]
[421785601,1778153447000,-500.0,0.00011506,2]
[421785602,1778153447000,-500.0,0.00011506,2]
[421785689,1778153448000,-500.0,0.0001178,2]
[421785691,1778153448000,-804.84,0.0001178,2]
[421785692,1778153448000,-500.0,0.0001178,2]
[421785681,1778153448000,-500.0,0.0001178,2]
[421785670,1778153448000,-500.0,0.00011506,2]
[421785674,1778153448000,-151.0,0.000117,2]
[421785673,1778153448000,-3111.56121231,0.00011603,2]
[421785669,1778153448000,-369.4,0.00011506,2]
[421785676,1778153448000,-823.0,0.00011751,2]
[421785675,1778153448000,-188.03772988,0.000117,2]
[421785678,1778153448000,-500.0,0.0001178,2]
[421785683,1778153448000,-382.02,0.0001178,2]
[421785688,1778153448000,-500.0,0.0001178,2]
[421785680,1778153448000,-861.1819,0.0001178,2]
[421785684,1778153448000,-336.32,0.0001178,2]
[421785682,1778153448000,-500.0,0.0001178,2]
[421785687,1778153448000,-500.0,0.0001178,2]
[421785685,1778153448000,-500.0,0.0001178,2]
[421785690,1778153448000,-500.0,0.0001178,2]
[421785693,1778153448000,-500.0,0.0001178,2]
[421785697,1778153448000,-240.03,0.0001178,2]
[421785695,1778153448000,-500.0,0.0001178,2]
[421785698,1778153448000,-500.0,0.0001178,2]
[421785672,1778153448000,-569.34590002,0.0001155,2]
[421785696,1778153448000,-500.0,0.0001178,2]
[421785686,1778153448000,-500.0,0.0001178,2]
[421785679,1778153448000,-338.97,0.0001178,2]
[421785658,1778153448000,-500.0,0.00011506,2]
[421785671,1778153448000,-500.0,0.00011506,2]
[421785705,1778153448000,-500.0,0.0001178,2]
[421785653,1778153448000,-500.0,0.00011506,2]
[421785645,1778153448000,-500.0,0.00011506,2]
[421785646,1778153448000,-725.65,0.00011506,2]
[421785644,1778153448000,-502.10413328,0.00011506,2]
[421785654,1778153448000,-500.0,0.00011506,2]
[421785643,1778153448000,-500.0,0.00011506,2]
[421785647,1778153448000,-562.47,0.00011506,2]
[421785648,1778153448000,-500.0,0.00011506,2]
[421785650,1778153448000,-1196.29,0.00011506,2]
[421785649,1778153448000,-500.0,0.00011506,2]
[421785652,1778153448000,-500.0,0.00011506,2]
[421785677,1778153448000,-2190.0,0.00011751,2]
[421785651,1778153448000,-951.06,0.00011506,2]
[421785657,1778153448000,-627.65,0.00011506,2]
[421785659,1778153448000,-500.0,0.00011506,2]
[421785662,1778153448000,-1835.42,0.00011506,2]
[421785661,1778153448000,-500.0,0.00011506,2]
[421785660,1778153448000,-500.0,0.00011506,2]
[421785665,1778153448000,-532.74,0.00011506,2]
[421785666,1778153448000,-500.0,0.00011506,2]
[421785664,1778153448000,-646.34,0.00011506,2]
[421785656,1778153448000,-500.0,0.00011506,2]
[421785663,1778153448000,-500.0,0.00011506,2]
[421785667,1778153448000,-1663.58,0.00011506,2]
[421785668,1778153448000,-500.0,0.00011506,2]
[421785655,1778153448000,-500.0,0.00011506,2]
[421785699,1778153448000,-500.0,0.0001178,2]
[421785704,1778153448000,-500.0,0.0001178,2]
[421785701,1778153448000,-500.0,0.0001178,2]
[421785728,1778153448000,-500.0,0.0001178,2]
[421785727,1778153448000,-500.0,0.0001178,2]
[421785735,1778153448000,-299.82,0.0001178,2]
[421785734,1778153448000,-500.0,0.0001178,2]
[421785744,1778153448000,-1433.04,0.0001178,2]
[421785736,1778153448000,-500.0,0.0001178,2]
[421785737,1778153448000,-1437.04,0.0001178,2]
[421785746,1778153448000,-500.0,0.0001178,2]
[421785738,1778153448000,-1053.66,0.0001178,2]
[421785742,1778153448000,-789.33,0.0001178,2]
[421785745,1778153448000,-6499.89,0.0001178,2]
[421785739,1778153448000,-500.0,0.0001178,2]
[421785740,1778153448000,-500.0,0.0001178,2]
[421785741,1778153448000,-8774.04,0.0001178,2]
[421785747,1778153448000,-450.56,0.0001178,2]
[421785748,1778153448000,-500.0,0.0001178,2]
[421785750,1778153448000,-500.0,0.0001178,2]
[421785749,1778153448000,-3435.07,0.0001178,2]
[421785751,1778153448000,-500.0,0.0001178,2]
[421785755,1778153448000,-562.47,0.0001178,2]
[421785752,1778153448000,-500.0,0.0001178,2]
[421785757,1778153448000,-500.0,0.0001178,2]
[421785756,1778153448000,-500.0,0.0001178,2]
[421785753,1778153448000,-500.0,0.0001178,2]
[421785754,1778153448000,-725.65,0.0001178,2]
[421785729,1778153448000,-688.82,0.0001178,2]
[421785724,1778153448000,-500.0,0.0001178,2]
[421785743,1778153448000,-500.0,0.0001178,2]
[421785726,1778153448000,-177.39,0.0001178,2]
[421785703,1778153448000,-933.68,0.0001178,2]
[421785723,1778153448000,-691.32,0.0001178,2]
[421785706,1778153448000,-428.94,0.0001178,2]
[421785694,1778153448000,-500.0,0.0001178,2]
[421785702,1778153448000,-500.0,0.0001178,2]
[421785700,1778153448000,-500.0,0.0001178,2]
[421785708,1778153448000,-500.0,0.0001178,2]
[421785718,1778153448000,-500.0,0.0001178,2]
[421785720,1778153448000,-500.0,0.0001178,2]
[421785715,1778153448000,-262.5,0.0001178,2]
[421785711,1778153448000,-500.0,0.0001178,2]
[421785707,1778153448000,-500.0,0.0001178,2]
[421785712,1778153448000,-500.0,0.0001178,2]
[421785714,1778153448000,-279.03,0.0001178,2]
[421785732,1778153448000,-500.0,0.0001178,2]
[421785713,1778153448000,-217.41,0.0001178,2]
[421785717,1778153448000,-500.0,0.0001178,2]
[421785719,1778153448000,-436.74,0.0001178,2]
[421785710,1778153448000,-182.28,0.0001178,2]
[421785730,1778153448000,-548.6,0.0001178,2]
[421785716,1778153448000,-500.0,0.0001178,2]
[421785722,1778153448000,-500.0,0.0001178,2]
[421785733,1778153448000,-1102.59,0.0001178,2]
[421785721,1778153448000,-500.0,0.0001178,2]
[421785725,1778153448000,-500.0,0.0001178,2]
[421785709,1778153448000,-705.13,0.0001178,2]
[421785731,1778153448000,-500.0,0.0001178,2]
[421785797,1778153449000,-500.0,0.00012054,2]
[421785788,1778153449000,-500.0,0.00012054,2]
[421785798,1778153449000,-500.0,0.00012054,2]
[421785795,1778153449000,-500.0,0.00012054,2]
[421785807,1778153449000,-467.92,0.00012054,2]
[421785794,1778153449000,-500.0,0.00012054,2]
[421785796,1778153449000,-500.0,0.00012054,2]
[421785790,1778153449000,-500.0,0.00012054,2]
[421785792,1778153449000,-645.86617898,0.00012054,2]
[421785789,1778153449000,-500.0,0.00012054,2]
[421785800,1778153449000,-622.72,0.00012054,2]
[421785806,1778153449000,-500.0,0.00012054,2]
[421785799,1778153449000,-495.85,0.00012054,2]
[421785815,1778153449000,-500.0,0.00012054,2]
[421785802,1778153449000,-500.0,0.00012054,2]
[421785804,1778153449000,-241.03,0.00012054,2]
[421785803,1778153449000,-933.68,0.00012054,2]
[421785805,1778153449000,-500.0,0.00012054,2]
[421785809,1778153449000,-500.0,0.00012054,2]
[421785808,1778153449000,-705.13,0.00012054,2]
[421785812,1778153449000,-500.0,0.00012054,2]
[421785811,1778153449000,-500.0,0.00012054,2]
[421785814,1778153449000,-500.0,0.00012054,2]
[421785810,1778153449000,-500.0,0.00012054,2]
[421785813,1778153449000,-292.96,0.00012054,2]
[421785816,1778153449000,-500.0,0.00012054,2]
[421785791,1778153449000,-500.0,0.00012054,2]
[421785801,1778153449000,-500.0,0.00012054,2]
[421785793,1778153449000,-804.84,0.00012054,2]
[421785761,1778153449000,-500.0,0.0001178,2]
[421785786,1778153449000,-500.0,0.00012054,2]
[421785758,1778153449000,-1196.29,0.0001178,2]
[421785759,1778153449000,-951.06,0.0001178,2]
[421785817,1778153449000,-691.32,0.00012054,2]
[421785769,1778153449000,-500.0,0.0001178,2]
[421785762,1778153449000,-336.78,0.0001178,2]
[421785763,1778153449000,-627.65,0.0001178,2]
[421785760,1778153449000,-500.0,0.0001178,2]
[421785765,1778153449000,-565.47,0.0001178,2]
[421785767,1778153449000,-546.6,0.0001178,2]
[421785764,1778153449000,-500.0,0.0001178,2]
[421785766,1778153449000,-500.0,0.0001178,2]
[421785770,1778153449000,-646.34,0.0001178,2]
[421785772,1778153449000,-500.0,0.0001178,2]
[421785776,1778153449000,-1000.0,0.00011921,2]
[421785774,1778153449000,-6329.05981334,0.0001188,2]
[421785778,1778153449000,-2000.0,0.00012,30]
[421785773,1778153449000,-151.0,0.000118,2]
[421785775,1778153449000,-151.0,0.000119,2]
[421785777,1778153449000,-578.20924308,0.00011999,2]
[421785779,1778153449000,-200.05,0.00012,2]
[421785780,1778153449000,-151.0,0.00012,2]
[421785771,1778153449000,-1663.58,0.0001178,2]
[421785781,1778153449000,-7530.0287619,0.00012021,2]
[421785782,1778153449000,-289.734,0.00012053,2]
[421785783,1778153449000,-287.03,0.00012054,2]
[421785785,1778153449000,-500.0,0.00012054,2]
[421785784,1778153449000,-861.1819,0.00012054,2]
[421785787,1778153449000,-321.34,0.00012054,2]
[421785818,1778153449000,-500.0,0.00012054,2]
[421785768,1778153449000,-1835.42,0.0001178,2]
[421785821,1778153449000,-500.0,0.00012054,2]
[421785850,1778153449000,-184.34,0.00012054,2]
[421785852,1778153449000,-627.65,0.00012054,2]
[421785849,1778153449000,-951.06,0.00012054,2]
[421785851,1778153449000,-500.0,0.00012054,2]